Cogmind - Beta 11 X5 @@@ ROGUE MODE // 2021.07.08 @ 20:55:17 Player: AlmondRoll Result: Self-destructed Performance ------------- Evolutions (3) 1500 Regions Visited (7) 1400 Robots Destroyed (85) 425 Value Destroyed (2217) 2217 Prototype IDs (24) 480 Alien Tech Used (0) 0 Bonus (1371) 1371 TOTAL SCORE: 7393 Bonus ------- High Alert Combat Kills 272 Follower Combat Kills 99 Entered Garrisons 200 Used RIF Installer 500 Aligned with FarCom 300 Cogmind --------- Core Integrity 333/700 Matter 106/300 Energy 155/290 System Corruption 11% Temperature Warm (194) Movement Treading (270) Ox1 Location -7/Factory Parts ------- > --- POWER (1) -------- Improved Deuterium Engine > --- PROPULSION (5) --- Armored Treads Armored Treads Armored Treads > --- UTILITY (5) ------ Coolant Injector Huge Storage Unit Improved Terrain Scan Processor Hardened Heavy Armor Plating > --- WEAPON (2) ------- Heavy Ion Cannon > --- INVENTORY (25) --- Cooling System Advanced Weight Redist. System Improved Terrain Scanner Target Analyzer Hacking Suite Hacking Suite Relay Coupler [NC] (31) Improved Trap Extractor Trap Reconfigurator Assault Rifle Heavy Assault Rifle Gauss Rifle Gauss Rifle XL Autogun Array Remote Datajack Peak State ------------ > --- POWER ------------ Improved Deuterium Engine > --- PROPULSION ------- Armored Treads Armored Treads Armored Treads Armored Treads Armored Treads > --- UTILITY ---------- Huge Storage Unit Advanced Weight Redist. System Improved Terrain Scanner Improved Terrain Scan Processor Hardened Medium Armor Plating > --- WEAPON ----------- Heavy Ion Cannon Heavy Assault Rifle > --- INVENTORY -------- Improved Deuterium Engine Light Treads Light Treads Light Treads Armored Treads Compact Wheel Cooling System Coolant Injector Signal Interpreter Hardened Medium Armor Plating Hardened Heavy Armor Plating Improved Medium Armor Plating Hacking Suite Hacking Suite Relay Coupler [NC] Improved Trap Extractor Trap Reconfigurator Gatling Laser Plasma Cannon XL Autogun Array Heavy Rocket Launcher [Rating: 48] Favorites ----------- Power Improved Deuterium Engine Engine Improved Deuterium Engine Propulsion Light Treads Treads Light Treads Leg Aluminum Leg Wheel Wheel Utility Huge Storage Unit Device Weight Redist. System Storage Huge Storage Unit Processor Improved Terrain Scan Processor Protection Hardened Medium Armor Plating Weapon Assault Rifle Energy Gun EM Shotgun Energy Cannon Plasma Cannon Ballistic Gun Assault Rifle Ballistic Cannon Mini Assault Cannon Launcher Heavy Rocket Launcher Build | -11 -10 -10 -10 -9 -8 -8 -7 ------- Run | Scr Mat Min Exi Min Mat Gar Fac Slots Evolved 6 | . . . . . 4 . 2 Power . | . . . . . . . . Propulsion 3 | . . . . . 3 . . Utility 3 | . . . . . 1 . 2 Weapon . | . . . . . . . . Parts Attached 88 | 3 11 . 1 2 12 28 31 Power 4 | . 2 . . . 1 . 1 Engine 4 | . 2 . . . 1 . 1 Core . | . . . . . . . . Reactor . | . . . . . . . . Propulsion 38 | 2 4 . 1 . 8 9 14 Treads 28 | . . . . . 5 9 14 Leg . | . . . . . . . . Wheel 10 | 2 4 . 1 . 3 . . Hover . | . . . . . . . . Flight . | . . . . . . . . Utility 28 | 1 3 . . . 3 11 10 Device 17 | 1 1 . . . 1 10 4 Storage 1 | . 1 . . . . . . Processor 1 | . . . . . . . 1 Hackware . | . . . . . . . . Protection 9 | . 1 . . . 2 1 5 Artifact . | . . . . . . . . Weapon 18 | . 2 . . 2 . 8 6 Energy Gun 3 | . 2 . . 1 . . . Energy Cannon 9 | . . . . . . 6 3 Ballistic Gun 3 | . . . . 1 . 1 1 Ballistic Cannon 1 | . . . . . . . 1 Launcher 2 | . . . . . . 1 1 Special Weapon . | . . . . . . . . Impact Weapon . | . . . . . . . . Slashing Weapon . | . . . . . . . . Piercing Weapon . | . . . . . . . . Special Melee Weapon . | . . . . . . . . Unidentified Prototypes 1 | . . . . . . . 1 Corrupted Parts 4 | . . . . . 1 3 . System Corruption 10 | . . . . . 1 9 . Parts Lost 15 | . 3 . . . . 2 10 Power 2 | . 1 . . . . . 1 Propulsion 7 | . 1 . . . . 1 5 Utility 3 | . . . . . . . 3 Weapon 3 | . 1 . . . . 1 1 Highest Loss Streak 9 | . 3 . . . . 1 9 Average Slot Usage (%) 98 | . 99 100 100 99 93 99 98 Engine 11 | . 13 14 14 14 9 9 6 Treads 18 | . . . . . 21 44 37 Wheel 16 | . 27 28 28 28 19 . . Device 12 | . 13 14 14 14 9 9 13 Storage 11 | . 14 14 14 14 9 9 7 Protection 4 | . . . . . 7 9 8 Energy Gun 7 | . 11 14 14 14 9 . . Energy Cannon 4 | . . . . . . 15 5 Ballistic Gun 10 | . 16 14 14 13 9 1 8 Naked Turns . | . . . . . . . . Heaviest Build 114 | 12 95 95 95 95 102 114 113 Greatest Support 109 | 20 32 32 32 32 109 109 109 Greatest Overweight (x) 5 | . 5 2 2 2 4 1 1 Average Overweight (x) 1 | . 2 2 2 2 . . . Largest Inventory Capacity 25 | 8 25 25 25 25 25 25 25 Average Capacity 24 | 8 22 25 25 25 25 25 25 Most Carried 25 | 8 25 25 25 25 25 25 25 Average Carried 22 | 6 16 24 24 24 24 24 24 Final Capacity 25 | 8 25 25 25 25 25 25 25 Final Carried 25 | 8 24 25 25 25 25 25 18 Class Distribution -------------------- 58% | Mutant 41% | Scavenger-Mutant Dominant Class ---------------- Mutant | -10/Materials Mutant | -10/Mines Mutant | -10/Exiles Mutant | -9/Mines Mutant | -8/Materials Scavenger-Mutant | -8/Garrison Scavenger-Mutant | -7/Factory Resources | -11 -10 -10 -10 -9 -8 -8 -7 ----------- Run | Scr Mat Min Exi Min Mat Gar Fac Matter Collected 1844 | 341 502 21 . 36 126 414 404 Remotely . | . . . . . . . . Salvage Created 2874 | 209 666 167 . . 105 767 960 Parts 196 | 10 46 20 . . 6 48 66 Haulers Intercepted 3 | . 2 . . . 1 . . Recyclers Shooed 2 | . 2 . . . . . . Parts Field Recycled . | . . . . . . . . Retrieved Matter . | . . . . . . . . Parts Self-Destructed . | . . . . . . . . Prevented . | . . . . . . . . Kills | -11 -10 -10 -10 -9 -8 -8 -7 ------- Run | Scr Mat Min Exi Min Mat Gar Fac Combat Hostiles Destroyed 51 | . 9 7 . . 1 18 16 Guns 24 | . 9 7 . . 1 1 6 Cannons 13 | . . . . . . 12 1 AOE 13 | . . . . . . 4 9 Classes Destroyed 14 | 3 5 . . . 1 . 5 Worker 10 | 2 3 2 . . . . 3 Builder 5 | . . . . . . . 5 Tunneler 3 | 3 . . . . . . . Hauler 3 | . 2 . . . 1 . . Recycler 7 | 1 2 . . . . . 4 Operator 2 | . 2 . . . . . . Watcher 4 | . 3 . . . . . 1 Swarmer 19 | . 5 6 . . . 4 4 Grunt 15 | . 4 1 . . . 8 2 Protector 2 | . . . . . . . 2 Sentry 7 | . . . . . 1 6 . Specialist 2 | . . . . . . . 2 Hunter 4 | . . . . . . . 4 Programmer 2 | . . . . . . . 2 Best Kill Streak 16 | 4 5 3 . . 1 6 16 Combat Bots Only 9 | . 3 3 . . 1 6 9 Max Kills in Single Turn 6 | 1 2 1 . . 1 2 6 Gunslinging . | . . . . . . . . Exploded 3 | . . . . . . 2 3 Melee . | . . . . . . . . Uniques/NPCs Destroyed . | . . . . . . . . Combat | -11 -10 -10 -10 -9 -8 -8 -7 -------- Run | Scr Mat Min Exi Min Mat Gar Fac Damage Taken 5289 | . 404 111 . 18 147 886 3723 Core 629 | . 143 32 . . 31 56 367 Absorbed by Shields 59 | . . . . . . 59 . Core Remaining (%) 71 | 100 . . . 30 . 84 . Volleys Fired 236 | 28 61 9 . . 6 66 66 Largest 2 | 2 2 2 . . 2 2 2 Hottest 149 | 40 65 65 . . 65 149 104 Shots Fired 409 | 56 122 16 . . 12 96 107 Gun 288 | 56 122 16 . . 12 12 70 Cannon 112 | . . . . . . 82 30 Launcher 9 | . . . . . . 2 7 Special . | . . . . . . . . Kinetic 231 | 56 84 9 . . 6 6 70 Thermal 89 | . . . . . . 59 30 Explosive 9 | . . . . . . 2 7 Electromagnetic 80 | . 38 7 . . 6 29 . Robot Hit Streak 14 | 7 10 9 . . 11 14 6 Robot Miss Streak 9 | 3 9 1 . . 2 2 5 Penetration Max 1 | . . . . . . . 1 Secondary Targets 1 | . . . . . . . 1 Max Gunslinging Chain 1 | . . . . . . . 1 Shots Hit Robots 229 | 33 68 9 . . 10 57 52 Core Hits 139 | 11 32 10 . . 6 24 56 Critical Kills 1 | . . . . . . 1 . Critical Parts Destroyed 1 | . 1 . . . . . . Critical Strikes 5 | . 3 . . . . 2 . Meltdown 1 | . . . . . . 1 . Destroy 1 | . 1 . . . . . . Corrupt 3 | . 2 . . . . 1 . Melee Attacks . | . . . . . . . . Impact . | . . . . . . . . Slashing . | . . . . . . . . Piercing . | . . . . . . . . Sneak Attacks . | . . . . . . . . Combat Hostiles . | . . . . . . . . Follow-up Attacks . | . . . . . . . . Damage Inflicted 6183 | 337 912 123 . . 120 1759 2932 Guns 2374 | 337 882 123 . . 120 112 800 Cannons 1719 | . . . . . . 1382 337 Explosions 2090 | . 30 . . . . 265 1795 Melee . | . . . . . . . . Ramming . | . . . . . . . . Kinetic 1908 | 337 607 104 . . 32 28 800 Thermal 1258 | . 30 . . . . 891 337 Explosive 2060 | . . . . . . 265 1795 Electromagnetic 957 | . 275 19 . . 88 575 . Impact . | . . . . . . . . Slashing . | . . . . . . . . Piercing . | . . . . . . . . Highest Corruption 11 | . . . . . 1 10 11 Average Corruption 7 | . . . . . 1 8 4 Corruption Purged . | . . . . . . . . Effects 54 | . . . . . . 48 6 Message Errors 11 | . . . . . . 10 1 Matter Fused 14 | . . . . . . 14 . Heat Flow Errors 8 | . . . . . . 7 1 Energy Discharges 4 | . . . . . . 3 1 Parts Rejected 1 | . . . . . . . 1 Data Loss (minor) 7 | . . . . . . 7 . Data Loss (major) 2 | . . . . . . 2 . Misfires 4 | . . . . . . 3 1 Alerts 2 | . . . . . . 2 . Weapon Failures 1 | . . . . . . . 1 Overload Shots . | . . . . . . . . Overflow Damage 57 | . 3 . . . . 33 21 Projectiles 33 | . . . . . . 33 . Explosions 24 | . 3 . . . . . 21 Melee . | . . . . . . . . Knockbacks . | . . . . . . . . Impact . | . . . . . . . . Kinetic . | . . . . . . . . Secondary . | . . . . . . . . Self-Inflicted Damage 144 | . . . . . . . 144 Shots 3 | . . . . . . . 3 Rammed . | . . . . . . . . Targets Rammed . | . . . . . . . . Kicked . | . . . . . . . . Crushed . | . . . . . . . . Highest Temperature 303 | . 120 45 . . 65 303 257 Average Temperature 71 | . 24 21 . . 25 98 69 Received Heat Transfer 1515 | . 210 33 . . 45 378 849 Effects 4 | . . . . . . 4 . Energy Bleed 3 | . . . . . . 3 . Short Circuit 1 | . . . . . . 1 . Siege Activations . | . . . . . . . . Robots Corrupted . | . . . . . . . . Combat Hostiles . | . . . . . . . . Parts Fried 1 | . . . . . . 1 . Impact Corruptions . | . . . . . . . . Robots Melted 1 | . . . . . . 1 . Combat Hostiles 1 | . . . . . . 1 . Parts Melted 5 | . . . . . . 4 1 Heat Transferred 2155 | . 50 . . . . 1699 406 Parts Sabotaged . | . . . . . . . . Parts Stolen . | . . . . . . . . Parts Stripped . | . . . . . . . . Power Chain Reactions 1 | . 1 . . . . . . Missiles Intercepted . | . . . . . . . . Alert | -11 -10 -10 -10 -9 -8 -8 -7 ------- Run | Scr Mat Min Exi Min Mat Gar Fac Peak Influence 970 | 30 147 136 . . 147 660 970 Initial 346 | . 19 1 . . . 5 346 Average 177 | 12 50 72 . . 42 378 360 Maximum Alert Level 3 | . . . . . . 2 3 Low Security (%) 63 | 100 100 100 . 100 100 9 7 Level 1 20 | . . . . . . 33 86 Level 2 15 | . . . . . . 56 . Level 3 . | . . . . . . . 6 Level 4 . | . . . . . . . . Level 5 . | . . . . . . . . High Security . | . . . . . . . . Max Security . | . . . . . . . . Squads Dispatched 8 | . 2 . . . . . 6 Investigation 3 | . 1 . . . . . 2 Extermination 1 | . . . . . . . 1 Reinforcement 3 | . 1 . . . . . 2 Assault . | . . . . . . . . Garrison 1 | . . . . . . . 1 Intercept . | . . . . . . . . Construction Impeded 1 | . . . . . . . 1 Haulers Reinforced . | . . . . . . . . Cargo Convoy Interrupts 1 | . . . . . . . 1 Stealth | -11 -10 -10 -10 -9 -8 -8 -7 --------- Run | Scr Mat Min Exi Min Mat Gar Fac Distress Signals 1 | . 1 . . . . . . Communications Jammed . | . . . . . . . . Distress Signals . | . . . . . . . . Times Spotted 90 | . 21 9 . . 5 25 30 Peak Tracking Total 14 | . 4 3 . . 3 8 14 Tactical Retreats 10 | . 2 1 . . . 6 1 Traps | -11 -10 -10 -10 -9 -8 -8 -7 ------- Run | Scr Mat Min Exi Min Mat Gar Fac Traps Triggered 10 | . 1 . . . . 8 1 Indirectly . | . . . . . . . . Trap Hack Attempts . | . . . . . . . . Triggered . | . . . . . . . . Disarmed . | . . . . . . . . Reprogrammed . | . . . . . . . . Reused . | . . . . . . . . Traps Reconfigurated 1 | . . . . . . 1 . Traps Extracted . | . . . . . . . . Installed . | . . . . . . . . Triggered . | . . . . . . . . Machines | -11 -10 -10 -10 -9 -8 -8 -7 ---------- Run | Scr Mat Min Exi Min Mat Gar Fac Machines Disabled 5 | . . . . . . 3 2 Max in Single Turn 1 | . . . . . . 1 1 Garrison Relay 1 | . . . . . . 1 . Machines Sabotaged . | . . . . . . . . Garrisons Compromised . | . . . . . . . . Overloaded Fab Kills . | . . . . . . . . Fab Network Shutdowns . | . . . . . . . . Hacking | -11 -10 -10 -10 -9 -8 -8 -7 --------- Run | Scr Mat Min Exi Min Mat Gar Fac Machines Accessed 14 | . 7 . 2 1 2 . 2 Terminals 10 | . 7 . . . 1 . 2 Fabricators . | . . . . . . . . Repair Stations . | . . . . . . . . Recycling Units . | . . . . . . . . Scanalyzers . | . . . . . . . . Garrison Access 1 | . . . . . 1 . . Total Hacks 37 | . 23 . 2 1 5 . 6 Successful 17 | . 11 . 2 1 3 . . Failed 19 | . 11 . . . 2 . 6 Catastrophic 2 | . . . . . 1 . 1 Database Lockouts 1 | . 1 . . . . . . Manual 22 | . 16 . 1 . 1 . 4 Terminals 32 | . 23 . . . 3 . 6 Fabricators . | . . . . . . . . Repair Stations . | . . . . . . . . Recycling Units . | . . . . . . . . Scanalyzers . | . . . . . . . . Garrison Access 2 | . . . . . 2 . . Terminal Hacks 14 | . 9 . 2 1 2 . . Record 1 | . . . 1 . . . . Robot Analysis 5 | . 5 . . . . . . Open Door 1 | . . . . 1 . . . Terminal Index 1 | . 1 . . . . . . Alert Level 1 | . 1 . . . . . . Unreport Threat 1 | . 1 . . . . . . Security Status 1 | . . . . . 1 . . Hauler Manifests 1 | . 1 . . . . . . Registered Components 1 | . . . . . 1 . . EX-Prototype ID Bank 1 | . . . 1 . . . . Fabricator Hacks . | . . . . . . . . Repair Station Hacks . | . . . . . . . . Recycling Unit Hacks . | . . . . . . . . Scanalyzer . | . . . . . . . . Garrison Access Hacks 1 | . . . . . 1 . . Unlock Access 1 | . . . . . 1 . . Unauthorized Hacks 2 | . 2 . . . . . . Terminals 2 | . 2 . . . . . . Botnet 2 | . 2 . . . . . . Fabricators . | . . . . . . . . Repair Stations . | . . . . . . . . Recycling Units . | . . . . . . . . Scanalyzers . | . . . . . . . . Garrison Access . | . . . . . . . . Data Cores Recovered 1 | . 1 . . . . . . Used . | . . . . . . . . Hacking Detections 11 | . 7 . . . 2 . 2 Full Trace Events 1 | . . . . . . . 1 Feedback Events . | . . . . . . . . Feedback Blocked . | . . . . . . . . Robot Schematics Acquired . | . . . . . . . . Robots Built . | . . . . . . . . Matter . | . . . . . . . . Time . | . . . . . . . . Total Robot Build Rating . | . . . . . . . . Part Schematics Acquired . | . . . . . . . . Parts Built . | . . . . . . . . Matter . | . . . . . . . . Time . | . . . . . . . . Total Part Build Rating . | . . . . . . . . Parts Repaired . | . . . . . . . . Time . | . . . . . . . . Parts Recycled . | . . . . . . . . Recycled Matter . | . . . . . . . . Retrieved Matter . | . . . . . . . . Retrieved Components . | . . . . . . . . Parts Scanalyzed . | . . . . . . . . Part Schematics Acquired . | . . . . . . . . Parts Damaged . | . . . . . . . . Bothacking | -11 -10 -10 -10 -9 -8 -8 -7 ------------ Run | Scr Mat Min Exi Min Mat Gar Fac Used RIF Installer 1 | . . . . . . 1 . Robots Hacked . | . . . . . . . . Non-combat . | . . . . . . . . Combat . | . . . . . . . . Robot Hacks Applied . | . . . . . . . . Relay Couplers Released 4 | . . . . . . 4 . Machine Destruction 4 | . . . . . . 4 . Robots Rewired . | . . . . . . . . Allies Hacked . | . . . . . . . . Hacks Repelled . | . . . . . . . . Allies | -11 -10 -10 -10 -9 -8 -8 -7 -------- Run | Scr Mat Min Exi Min Mat Gar Fac Total Allies 6 | . . 5 . 1 . . . Largest Group 5 | . . 5 5 4 4 3 . Highest-Rated Group 79 | . . 79 79 71 71 40 . Highest-Rated Ally 31 | . . 31 31 31 31 16 . Total Orders . | . . . . . . . . Ally Attacks 24 | . . 3 . . 9 12 . Total Damage 262 | . . 42 . . 91 129 . Kills 3 | . . 1 . . 1 1 . Allies Corrupted . | . . . . . . . . Allies Melted . | . . . . . . . . Intel | -11 -10 -10 -10 -9 -8 -8 -7 ------- Run | Scr Mat Min Exi Min Mat Gar Fac Robot Analysis Total 5 | . 5 . . . . . . Derelict Logs Recovered 3 | . . 2 . 1 . . . Drone Launches . | . . . . . . . . Drone Recoveries . | . . . . . . . . Exploration | -11 -10 -10 -10 -9 -8 -8 -7 ------------- Run | Scr Mat Min Exi Min Mat Gar Fac Turns Passed 5651 | 133 1314 806 336 417 518 1438 689 Spaces Moved 3304 | 40 892 629 273 324 376 505 265 Core . | . . . . . . . . Treads 893 | . . . . . 123 505 265 Legs 25 | 25 . . . . . . . Wheels 2386 | 15 892 629 273 324 253 . . Hover . | . . . . . . . . Flight . | . . . . . . . . Fastest Speed 80 | 80 80 120 120 120 100 160 160 Average Speed 140 | 105 118 120 120 120 122 231 165 Slowest Speed 266 | 120 155 120 120 120 160 260 266 Overloaded Moves . | . . . . . . . . Propulsion Burnouts . | . . . . . . . . Robots Hopped . | . . . . . . . . Cave-ins Triggered . | . . . . . . . . Exploration Rate (%) 56 | 3 95 99 70 81 22 76 9 Regions Visited 7 Branch Regions 3 Pre-discovered Areas 4 | . . 3 1 . . . . Known Exits Taken 1 | . . . . . 1 . . Unknown Exits Taken 5 | 1 1 1 1 1 . . . Scrap Searched 2 | . . 1 . 1 . . . Spaces Dug 4 | . . . . . . . 4 Terrain Destroyed 41 | . . . . . . 3 38 Melee . | . . . . . . . . Projectile 4 | . . . . . . . 4 AOE 37 | . . . . . . 3 34 Terrain Rammed . | . . . . . . . . Walls Destroyed . | . . . . . . . . Machines Disabled . | . . . . . . . . Actions | -11 -10 -10 -10 -9 -8 -8 -7 --------- Run | Scr Mat Min Exi Min Mat Gar Fac Total 3931 | 81 1037 665 283 356 428 673 408 Wait 157 | . 37 25 3 16 12 48 16 Move 3297 | 39 891 628 272 323 375 504 265 Hop . | . . . . . . . . Pick Up 69 | 7 25 2 2 7 9 4 13 Fast Attach 18 | . 3 . . . 7 6 2 Attach 22 | 1 3 . . 2 4 2 10 Detach 2 | . 1 . . . 1 . . Swap 48 | 2 5 . 1 . 1 20 19 Drop 70 | 4 11 1 5 8 13 11 17 Fire 236 | 28 61 9 . . 6 66 66 Melee . | . . . . . . . . Ram . | . . . . . . . . Kick . | . . . . . . . . Crush . | . . . . . . . . Escape Stasis 12 | . . . . . . 12 . Rewire . | . . . . . . . . Trap . | . . . . . . . . Miscellaneous . | . . . . . . . . Route ------- -11/Scrapyard -10/Materials (discovered 4 exits: [*Mat x3] / [*Min]) -10/Mines (discovered 3 exits: [*Mat x2] / *Exi) -10/Exiles (discovered 2 exits: *Min x2) -9/Mines -8/Materials -8/Garrison (discovered 3 exits: *Fac x3) -7/Factory History --------- Turn | Location | Event 30 | -11/Scrapyard | Discovered new exit (range 3) 134 | -11/Scrapyard | Entered Materials 320 | -10/Materials | Discovered new exit (range 6) 333 | -10/Materials | Build established: Mutant 424 | -10/Materials | Lost 3 parts (1p1n1w) 444 | -10/Materials | Discovered new exit (range 3) 502 | -10/Materials | Discovered new exit (range 7) 804 | -10/Materials | Core integrity fell below 50% 928 | -10/Materials | Discovered new exit (range 13) 979 | -10/Materials | Central database locked down 1448 | -10/Materials | Entered Mines 1492 | -10/Mines | Met a Derelict bent on vengeance 1496 | -10/Mines | Discovered new exit (range 7) 1596 | -10/Mines | Learned location of Zion (-7) 1689 | -10/Mines | Deemed a non-threat by the Exiles lab entrance 1689 | -10/Mines | Discovered new exit (range 5) 1914 | -10/Mines | Learned location of Mines (-9) 1932 | -10/Mines | Learned location of Storage (-9) 1983 | -10/Mines | Assisted by bots powering up and referring to "LRC-V3" 2003 | -10/Mines | Discovered new exit (range 5) 2254 | -10/Mines | Entered Exiles 2254 | -10/Exiles | Accompanied by 5 allies 2270 | -10/Exiles | Discovered new exit (range 15) 2284 | -10/Exiles | Led the pair of lost Derelicts to a safe place 2287 | -10/Exiles | Met 8R-AWN 2304 | -10/Exiles | Met EX-HEX 2367 | -10/Exiles | Met EX-DEC 2410 | -10/Exiles | Met EX-BIN 2427 | -10/Exiles | Aligned with FarCom system 2428 | -10/Exiles | Given EX-Vault access code 2456 | -10/Exiles | Opened EX-Vault 2464 | -10/Exiles | Found Trap Reconfigurator 2473 | -10/Exiles | Found XL Autogun Array 2498 | -10/Exiles | Warned to stay clear of 0b10 Research branches 2511 | -10/Exiles | Exiles lab attacked by MAIN.C 2574 | -10/Exiles | Discovered new exit (range 10) 2590 | -10/Exiles | Stole two prototypes: Trap Reconfigurator, XL Autogun Array 2590 | -10/Exiles | Entered Mines 2590 | -9/Mines | Accompanied by 3 allies 2605 | -9/Mines | Learned Materials terminal intel 2623 | -9/Mines | Met a Derelict who couldn't figure out how to use a Trap Extractor 2748 | -9/Mines | Received a Mining Laser from a helpful Derelict 2810 | -9/Mines | Received a Rocket Launcher from a helpful Derelict 2987 | -9/Mines | Discovered new exit (range 7) 3007 | -9/Mines | Entered Materials 3007 | -8/Materials | Accompanied by 4 allies 3007 | -8/Materials | Evolved 4 slots: Propulsion x3, Utility x1 3008 | -8/Materials | Loaded intel: 12 terminal locations 3036 | -8/Materials | Identified exit to Garrison 3525 | -8/Materials | Entered Garrison 3525 | -8/Garrison | Accompanied by 3 allies 3590 | -8/Garrison | Triggered checkpoint 3746 | -8/Garrison | System corruption reached 10% 3868 | -8/Garrison | Discovered new exit (range 15) 4052 | -8/Garrison | Build established: Scavenger-Mutant 4186 | -8/Garrison | Discovered new exit (range 15) 4322 | -8/Garrison | Triggered checkpoint 4448 | -8/Garrison | Discovered new exit (range 7) 4476 | -8/Garrison | Installed Relay Interface Framework 4603 | -8/Garrison | Triggered checkpoint 4817 | -8/Garrison | Garrison Relay disabled 4963 | -8/Garrison | Entered Factory 4963 | -7/Factory | Evolved 2 slots: Utility x2 4965 | -7/Factory | FarCom data flow suspended 5603 | -7/Factory | Garrison activated, responded to threat 5608 | -7/Factory | Cargo convoy interrupted 5651 | -7/Factory | System corruption reached 10% 5652 | -7/Factory | Core integrity fell below 50% 5652 | -7/Factory | Self-destructed Last Messages --------------- 05642_ U-05 Engineer lays Concrete. 05642_ R-06 Scavenger collects Assault Rifle. 05642_ U-05 Engineer lays Concrete. 05643_ U-05 Engineer builds a Wall. 05644_ Subcomponent Replicator disabled. 05644_ R-06 Scavenger destroyed. 05644_ H-55 Commando destroyed. 05644_ K-01 Serf collects debris. 05644_ Penetrated by Slug. 05645_ The unstable cave ceiling collapses. 05645_ R-06 Scavenger collects Assault Rifle. 05646_ U-05 Engineer destroyed. 05646_ I-36 Angel destroyed. 05646_ X-62 Marksman destroyed. 05646_ K-01 Serf destroyed. 05646_ U-05 Engineer destroyed. 05648_ Hvy. Rocket Launcher destroyed. 05648_ Slug penetrates R-06 Scavenger. 05651_ Penetrated by Slug. 05651_ Critical hit (Burn: +37). Map ----- +----------------------------------------------------+ | ?????????????????????????????????????????????????? | | ?????????????????????????????????????????????????? | | ?????????????????????????????????????????????????? | | ?????????????????????????????????????????????????? | | ?????????????????????????????????????????????????? | | ?????????????????????????????????????????????????? | | ?????????????????????????????????????????????????? | | ?????????????????????????????????????????????????? | | ?????????????????????????????????????????????????? | | ????????????????????????? ???????????????????????? | | ????????????????#????"" ?#???????????????????? | | ??????????????? ? "?" ??#??????????????????? | | ??????????????????"" =%! ?#?##???????????????? | | ????????????####? !! %! ?????????????????????? | | ????????????#?###? %%* ==!= ????#"""?????????????? | | ??????????????##### ==% p ##?#?#??? ????????????? | | ??????????? ? %*xx ###????"? ???????????? | | ???????????? ? =%* % #####"??? ???????????? | | ????????????? ? ![[ #"#"###??? ??????????? | | ?????????? ? ? !% [ #? ???????????? | | ???????? ?? ?? ##?????????????? | | ?????????? ? ? ??? # #? ????????????? | | ?????????? ? ? # r% #? ??"?????????? | | ????????? ? ? ? # % != ##? ???????????? | | ??????? ? ] # ]= # = ##???"?????????? | | ????###?###??#?##### = @ =! [ ## ?????????? | | ???#??#?############# [ [ ##?????????????? | | ?#???#?#### ## % % g ## ????????????? | | ????? ## = "?"## * """ #? ?""????????? | | ?"??""?" ## """## """ #? ?????????? | | "?""?"" ## """## """ ? ???"????????? | | ?"?"""" ## ## # ?? ?????????? | | ?""""""" ## """## #= # ??????????? | | ?? ?? ## """## # " " + ???????????? | | ? ## """## # ""G"" # ? ???????????? | | ## ## == # # ????????????? | | #+#############+##### %Y#######?# ?????????????? | | *%!* % ??????????? | | / ===* ??????????? | | "" %! % = ??????????? | | "" * % %! ???????????? | | "" ^ ???????????? | | ###+#############+######+#######????????????? | | # !# ?? # ?? ????????????? | | # #""" #? ! ?????????????? | | # """ """ #""" ?? ??????????????? | | + """ """ #""" ? # ???????????????? | | # """ """ #? # ""? ????????????????? | | # #""" * # ""??????????????????? | | ######! """ """ ??"? # ?""?????????????????? | +----------------------------------------------------+ Best States ------------- Heat Dissipation 53 Coolant Potential 65 Energy Generation 16 Energy Capacity 290 Matter Stores 300 Matter Capacity 300 Sight Range 16 Terrain Scan Range 16 Terrain Scan Density 110 Additional Mass Support 9 Armor Coverage 600 Weapon Shielding 33 Evasion (%) 45 Recoil Reduction 5 Item Schematics ----------------- None Robot Schematics ------------------ None Fabricated ------------ Nothing Alien Tech Used ----------------- None Achievements -------------- None Challenges ------------ None Game ------ Seed LaserDeepGun Manual? 0 Play Time 01:02:25 Cumulative 228.2 hours Start 2021.07.08 @ 19:54:43 End 2021.07.08 @ 20:55:17 Sessions 1 Manual Loads 0 Difficulty Rogue Special Mode None Game No. 132 Rogue 132 Adventurer 0 Explorer 0 Win Type - Total 3 Types 2/0/0/1/0/0/0/0/0 Lore% 65 Gallery% 76 Achievement% 52 Wizard Run 0 Options --------- ASCII 0 Keyboard 0 Movement Numpad Keybinds 0 Fullscreen 1 Font 18/SmallcapsGlow Map View 76x50 Tactical HUD 1 Map Filters NONE Filters NONE Steam 1 RUN: 646b15c9-ebfe-45ad-bf0a-6ff49f2755ce